bitfinex/quotes_ETHUSD_20260102
["timestamp","ask_amount","ask_price","bid_price","bid_amount"]
[1767319573357,2.64572575,3000.0,2999.8,0.002]
[1767319574174,2.64572575,3000.0,2999.7,0.001]
[1767319575166,2.64572575,3000.0,2999.5,2.31414751]
[1767319575870,2.64572575,3000.0,2999.5,0.002]
[1767319576257,2.40520523,2999.9,2999.5,0.002]
[1767319576464,2.6697778,2999.8,2999.5,0.002]
[1767319576773,2.6697778,2999.8,2999.3,0.002]
[1767319577776,2.6697778,2999.8,2999.2,0.002]
[1767319577777,2.40520523,2999.7,2999.2,0.002]
[1767319578144,2.40520523,2999.7,2999.0,0.002]
[1767319578349,2.40520523,2999.7,2998.6,2.65716592]
[1767319578350,2.40520523,2999.2,2998.6,2.65716592]
[1767319580000,2.40520523,2999.2,2998.6,0.34501841]
[1767319580147,2.40520523,2999.1,2998.5,2.31214751]
[1767319581544,3.33408283,2999.4,2998.5,2.31214751]
[1767319581741,3.33408283,2999.4,2998.4,0.875]
[1767319581742,2.40520523,2999.5,2998.7,2.31214751]
[1767319582092,2.83993622,2999.5,2998.9,2.29118672]
[1767319582774,2.40520523,2999.9,2999.0,2.10074992]
[1767319583749,2.32713631,3000.1,2999.2,2.10074992]
[1767319588082,2.32713631,3000.1,2999.3,2.10074992]
[1767319588262,2.32713631,3000.1,2999.5,2.09945622]
[1767319593372,2.32713631,3000.1,2999.1,2.10145622]
[1767319593373,2.48679961,3000.0,2999.1,2.10145622]
[1767319593679,2.48679961,3000.0,2999.1,2.10020895]
[1767319593680,2.56662931,3000.0,2999.1,2.10020895]
[1767319595192,2.48679961,2999.9,2999.1,2.10020895]
[1767319595359,3.07680457,2999.9,2999.1,2.10020895]
[1767319595562,2.48679961,2999.8,2999.1,0.00075273]
[1767319597582,2.48679961,2999.6,2999.1,0.00075273]
[1767319598654,2.48679961,2999.5,2999.1,0.00075273]
[1767319599586,2.48679961,2999.3,2999.1,0.00075273]
[1767319599859,3.06887958,2999.3,2998.9,0.002]
[1767319600685,3.06887958,2999.3,2998.7,2.09945622]
[1767319601167,3.06887958,2999.3,2998.3,2.10145622]
[1767319601372,3.06887958,2999.3,2998.5,0.876]
[1767319601574,2.48679961,2999.1,2998.5,0.876]
[1767319601770,2.48679961,2999.1,2998.6,2.10145622]
[1767319602961,2.48679961,2999.1,2998.6,2.10345622]
[1767319604055,2.48679961,2999.0,2998.6,2.10345622]
[1767319605164,3.51598389,2999.2,2998.6,2.10345622]
[1767319605492,2.48679961,2999.2,2998.6,2.10345622]
[1767319606360,0.58207997,2999.3,2998.6,2.10345622]
[1767319606587,0.001,2999.5,2998.6,3.89096306]
[1767319606787,0.001,2999.5,2998.9,2.10145622]
[1767319608790,5.8206091,2999.6,2998.9,2.10145622]
[1767319608991,3.33377013,2999.7,2999.0,2.10045622]
[1767319609295,0.58205697,2999.6,2999.0,2.10045622]
[1767319610587,2.48679961,2999.7,2999.3,2.10045622]
[1767319611100,5.82025117,2999.9,2999.3,2.10045622]
[1767319611789,0.001,3000.0,2999.3,2.10045622]
[1767319611995,0.001,3000.0,2999.5,2.10045622]
[1767319612706,2.48679961,3000.1,2999.5,2.09945622]
[1767319613386,0.001,2999.8,2999.5,2.09945622]
[1767319614305,0.001,2999.8,2999.1,2.09945622]
[1767319614306,2.4688925,2999.7,2999.1,2.09945622]
[1767319614601,2.4688925,2999.7,2999.1,2.97545622]
[1767319615997,3.10477806,2999.7,2999.1,2.97545622]
[1767319616166,2.4688925,2999.6,2998.9,0.878]
[1767319616366,2.4688925,2999.6,2999.0,2.09945622]
[1767319618292,2.4688925,2999.5,2999.0,2.09945622]
[1767319618501,2.4688925,2999.4,2999.0,2.09945622]
[1767319620197,2.4688925,2999.4,2998.9,0.002]
[1767319620893,1.03275575,2999.5,2999.0,2.09945622]
[1767319621093,2.4688925,2999.4,2999.0,2.10145622]
[1767319621692,2.4688925,2999.0,2998.6,2.10145622]
[1767319625601,2.4688925,2999.6,2998.6,2.10145622]
[1767319625899,2.4688925,2999.5,2998.6,2.10145622]
[1767319626094,2.4688925,2999.3,2998.6,2.10145622]
[1767319626393,2.4688925,2999.3,2998.7,2.09945622]
[1767319626597,2.93979572,2999.3,2998.7,2.09945622]
[1767319627501,2.93979572,2999.3,2998.7,2.132804]
[1767319627668,2.93979572,2999.3,2998.6,0.878]
[1767319627869,2.93979572,2999.3,2998.7,2.132804]
[1767319628173,2.93979572,2999.3,2998.7,2.09945622]
[1767319628372,2.4688925,2999.1,2998.7,2.09945622]
[1767319629181,2.4688925,2999.7,2998.7,2.09945622]
[1767319629374,2.4688925,2999.6,2998.8,2.09945622]
[1767319629879,2.4688925,2999.6,2998.8,2.13280289]
[1767319630840,2.4688925,2999.6,2999.0,2.09945622]
[1767319630974,2.71588175,2999.6,2999.0,2.09945622]
[1767319636593,2.71588175,2999.6,2999.0,2.10145622]
[1767319636777,0.24698925,2999.6,2999.0,2.10145622]
[1767319637102,0.24698925,2999.6,2999.1,2.09945622]
[1767319639018,2.4688925,2999.7,2999.1,2.09945622]
[1767319641576,2.4698925,3000.0,2999.3,2.09845622]
[1767319645216,2.4698925,3000.0,2999.3,2.10045622]
[1767319646030,2.4698925,3000.0,2999.4,3.88896306]
[1767319646209,2.41815959,2999.9,2999.5,2.09845622]
[1767319647213,0.001,3000.0,2999.5,2.39610184]
[1767319647436,2.41815959,3000.2,2999.7,2.09745622]
[1767319649803,2.41815959,3000.2,2999.5,0.29764562]
[1767319650005,2.41815959,3000.1,2999.5,0.876]
[1767319650507,2.41815959,3000.0,2999.5,0.876]
[1767319650708,2.41815959,3000.0,2999.4,2.09745622]
[1767319650903,2.41815959,3000.0,2999.3,0.002]
[1767319652357,2.41815959,2999.9,2999.3,2.09945622]
[1767319652815,2.41815959,2999.8,2999.3,0.002]
[1767319660145,2.41815959,2999.7,2999.3,0.002]
[1767319660353,2.41815959,2999.7,2999.0,0.002]
[1767319660918,2.41815959,2999.7,2999.0,2.10145622]
[1767319661320,2.41815959,2999.6,2999.0,2.10145622]
[1767319661570,2.41815959,2999.4,2999.0,2.10145622]
[1767319662250,2.41815959,2999.4,2999.0,0.002]
[1767319664120,3.88799935,2999.4,2998.6,0.002]
[1767319664324,3.88799935,2999.4,2998.6,2.10145622]
[1767319664325,2.41815959,2999.3,2998.6,2.10145622]
[1767319664522,2.86447782,2999.3,2998.6,2.10145622]
[1767319665045,2.41815959,2999.2,2998.6,2.10145622]
[1767319666747,2.41815959,2999.2,2998.5,0.002]
[1767319667053,2.41815959,2999.0,2998.5,0.002]
[1767319667256,2.41815959,2998.8,2998.5,0.002]
[1767319669450,2.41815959,2998.8,2998.3,2.97545622]
[1767319670959,3.33467529,2998.8,2998.3,0.876]
[1767319671161,3.33467529,2998.8,2998.1,2.10545622]
[1767319671162,2.41815959,2998.7,2998.1,2.10545622]
[1767319671340,2.41815959,2998.6,2998.1,2.10545622]
[1767319671541,2.41815959,2998.5,2998.1,2.10545622]
[1767319672261,3.4453046,2998.7,2998.1,2.10545622]
[1767319672462,2.41815959,2998.6,2998.1,2.10545622]
[1767319673372,2.41815959,2998.6,2998.1,0.002]
[1767319673569,2.37942537,2998.4,2998.1,0.002]
[1767319674067,2.37942537,2998.4,2998.0,2.08481469]
[1767319676465,2.37942537,2998.4,2998.0,0.00031924]
[1767319680851,2.37942537,2998.8,2998.0,0.00031924]
[1767319681184,2.37942537,2998.7,2998.0,0.00031924]
[1767319682282,3.33484974,2998.7,2998.0,0.00031924]
[1767319682451,2.37942537,2998.5,2998.0,0.00031924]
[1767319686896,2.37942537,2998.5,2998.0,0.03367481]
[1767319687054,2.37942537,2998.5,2998.1,2.08449545]
[1767319688185,2.38042537,2998.5,2998.1,2.08449545]
[1767319688482,0.001,2998.5,2998.1,2.08449545]
[1767319688985,2.37942537,2999.1,2998.2,0.03335334]
[1767319689189,2.37942537,2999.1,2998.3,2.08349545]
[1767319689394,2.37942537,2999.1,2998.4,2.08349545]
[1767319691254,0.876,2999.6,2998.5,2.08349545]
[1767319691255,2.37942537,2999.4,2998.5,2.08349545]
[1767319691591,2.37942537,2999.4,2998.7,2.08349545]
[1767319692989,2.37942537,2999.6,2998.9,2.08349545]
[1767319695897,2.38042537,2999.6,2998.9,2.08349545]
[1767319697658,2.38042537,2999.6,2999.0,2.08349545]
[1767319697981,2.38042537,2999.6,2999.1,2.08349545]
[1767319699691,2.38042537,2999.6,2998.9,2.95949545]
[1767319700059,2.38042537,2999.6,2998.6,0.41669909]
[1767319700396,2.37942537,2999.5,2998.7,2.08349545]
[1767319701588,2.37942537,2999.5,2998.8,0.03334667]
[1767319701790,2.37942537,2999.5,2998.9,2.08349545]
[1767319701996,2.61756791,2999.5,2998.9,2.08349545]
[1767319704694,2.61856791,2999.5,2998.9,2.08349545]
[1767319706578,3.57304578,2999.5,2998.6,0.876]
[1767319706784,2.26280908,2999.4,2998.7,2.08349545]
[1767319706991,2.26280908,2999.2,2998.7,2.08349545]
[1767319712807,2.26380908,2999.2,2998.7,2.08349545]
[1767319713988,2.26380908,2999.2,2998.6,2.08349545]
[1767319717327,2.26380908,2999.2,2998.4,2.08349545]
[1767319717495,2.26380908,2999.2,2998.5,2.95949545]
[1767319717697,2.26280908,2999.0,2998.5,2.95949545]
[1767319718195,2.26280908,2999.0,2998.5,2.08349545]
[1767319718395,2.26280908,2999.0,2998.1,3.5472276]
[1767319718396,2.26280908,2999.0,2998.4,0.876]
[1767319719021,2.26280908,2999.0,2998.4,2.95949545]
[1767319720451,2.26280908,2999.0,2998.5,0.002]
[1767319720610,0.22638091,2999.1,2998.5,0.002]
[1767319720611,2.26280908,2998.8,2998.5,0.002]
[1767319723599,2.26280908,2998.7,2998.0,0.00031924]
[1767319723800,2.26280908,2998.7,2998.1,2.08549545]
[1767319728267,2.26280908,2998.6,2998.0,0.00031924]
[1767319728558,2.26280908,2998.4,2998.0,0.00031924]
[1767319728942,2.26280908,2998.4,2998.0,2.08581469]
[1767319735059,2.26280908,2998.4,2998.0,0.00031924]
[1767319744542,0.001,2998.5,2998.0,0.00031924]
[1767319745268,0.001,2998.5,2998.0,2.08581469]
[1767319745464,0.001,2998.5,2998.2,2.08549545]
[1767319750868,2.34989408,2998.9,2998.2,2.08449545]
[1767319751050,2.34989408,2998.8,2998.2,2.08449545]
[1767319755078,2.34989408,2999.0,2998.3,2.08449545]
[1767319757890,2.34989408,2999.0,2998.3,2.08349545]
[1767319758289,0.001,2999.2,2998.4,2.08349545]
[1767319758464,2.35089408,2999.2,2998.6,2.08349545]
[1767319758797,2.35089408,2999.2,2998.5,0.59730071]
[1767319758989,2.35089408,2999.2,2998.5,2.08349545]
[1767319759159,3.33524095,2999.2,2998.5,2.08349545]
[1767319759359,2.34989408,2999.1,2998.5,2.08349545]
[1767319761578,3.88951166,2999.1,2998.3,0.876]
[1767319761880,2.34989408,2999.0,2998.3,0.876]
[1767319762071,2.34989408,2999.0,2998.3,1.17214954]
[1767319762257,2.34989408,2999.0,2998.3,3.25564499]
[1767319762460,2.34989408,2999.0,2998.3,2.37964499]
[1767319762662,2.34989408,2999.0,2998.5,2.08349545]
[1767319762862,2.34989408,2999.0,2998.5,2.11684545]
[1767319763086,2.34989408,2999.0,2998.7,2.08349545]
[1767319764792,0.001,2999.2,2998.7,2.08349545]
[1767319764793,2.3291461,2999.2,2998.7,2.08349545]
[1767319765090,0.001,2999.0,2998.7,2.08349545]
[1767319765292,2.3281461,2999.1,2998.7,2.08249545]
[1767319766270,0.001,2999.2,2998.7,2.08249545]
[1767319766473,0.001,2999.2,2998.9,2.08249545]
[1767319770701,2.3281461,2999.3,2998.9,2.08149545]
[1767319771099,2.3291461,2999.5,2998.9,2.08149545]
[1767319772286,0.001,2999.5,2998.9,2.08149545]
[1767319772482,0.001,2999.5,2999.1,2.08149545]
[1767319772690,2.3291461,2999.5,2999.1,2.08149545]
[1767319775576,0.001,2999.5,2999.1,2.08149545]
[1767319775786,0.001,2999.6,2999.1,2.07949545]
[1767319777913,2.3291461,2999.6,2999.1,2.07949545]
[1767319778116,2.3291461,2999.6,2999.1,0.54140242]
[1767319778414,2.3291461,2999.6,2999.0,2.07949545]
[1767319781038,2.3291461,2999.6,2999.0,2.08149545]
[1767319797234,2.3291461,2999.6,2999.1,2.07949545]
[1767319797633,2.3291461,2999.6,2999.0,0.002]
[1767319797813,2.3291461,2999.6,2999.1,2.07949545]
[1767319798013,2.3291461,2999.6,2999.2,2.62108022]
[1767319798210,2.3291461,2999.6,2999.0,2.08149545]
[1767319811746,2.3291461,2999.6,2999.2,2.07949545]
[1767319812049,2.3291461,2999.6,2999.2,2.07825845]
[1767319812216,2.3291461,2999.6,2999.0,2.08025845]
[1767319821624,0.001,3000.0,2999.1,2.10960178]
[1767319821819,0.001,3000.0,2999.3,2.07625845]
[1767319822449,2.43767764,3000.0,2999.3,2.07625845]
[1767319823440,2.43667764,2999.7,2999.1,2.07625845]
[1767319823750,2.43667764,2999.7,2999.2,2.10960067]
[1767319825047,2.43667764,2999.7,2999.2,2.07625845]
[1767319828022,2.43667764,2999.7,2999.3,2.10959956]
[1767319828223,2.40878125,2999.9,2999.3,2.07625845]
[1767319828423,0.001,3000.0,2999.3,2.07625845]
[1767319828623,2.40878125,2999.9,2999.3,2.07625845]
[1767319829051,0.001,2999.7,2999.3,2.07625845]
[1767319829232,0.001,2999.7,2999.2,0.62887004]
[1767319829233,0.001,2999.7,2999.5,2.07625845]
[1767319831206,0.001,3000.0,2999.5,2.07525845]
[1767319831360,2.40878125,3000.1,2999.5,2.07593921]
[1767319831361,2.40710049,3000.1,2999.5,2.07593921]
[1767319835158,0.001,3000.2,2999.6,2.07593921]
[1767319835683,2.40978125,3000.2,2999.6,2.07593921]
[1767319835986,2.40878125,3000.3,2999.8,2.07493921]
[1767319836184,2.40878125,3000.3,2999.5,0.876]
[1767319836360,2.40878125,3000.0,2999.4,2.07493921]
[1767319836561,2.40878125,3000.0,2999.2,0.876]
[1767319836761,2.40878125,3000.0,2999.2,2.95093921]
[1767319836962,2.40878125,3000.0,2999.3,0.002]
[1767319837179,2.40878125,2999.9,2999.3,0.002]
[1767319842579,2.40878125,2999.8,2999.3,0.002]
[1767319843102,2.40878125,2999.6,2999.3,0.002]
[1767319843899,2.40878125,2999.4,2999.0,2.07693921]
[1767319844103,3.03840047,2999.3,2999.1,0.876]
[1767319844404,6.29619218,2999.5,2999.1,2.95093921]
[1767319844571,2.40878125,2999.5,2999.1,2.95093921]
[1767319844990,2.40878125,2999.5,2999.3,0.002]
[1767319852399,2.40878125,2999.9,2999.3,2.07693921]
[1767319852709,2.40878125,2999.9,2999.5,2.07493921]
[1767319853078,2.40878125,2999.9,2999.4,0.03334]
[1767319854313,2.40878125,2999.9,2999.3,2.07693921]
[1767319856593,2.40878125,2999.9,2999.4,0.03334]
[1767319856911,2.40878125,2999.9,2999.4,2.10827921]
[1767319860735,2.40878125,2999.9,2999.4,2.31930713]
[1767319860902,0.001,3000.1,2999.5,2.07393921]
[1767319861095,0.001,3000.4,2999.7,2.07193921]
[1767319861418,2.49571014,3000.4,2999.7,2.07193921]
[1767319862125,2.49571014,3000.4,2999.7,2.07093921]
[1767319862325,2.49571014,3000.4,2999.9,2.07093921]
[1767319879011,2.49471014,3000.3,2999.6,2.07093921]
[1767319879211,2.49471014,3000.3,2999.4,4.42099262]
[1767319879212,2.49471014,2999.9,2999.4,2.07093921]
[1767319879511,2.49471014,2999.9,2999.3,2.07293921]
[1767319879740,2.49471014,2999.9,2999.3,2.7012601]
[1767319880448,2.49471014,2999.9,2999.3,0.63032089]
[1767319880754,2.49471014,2999.9,2999.4,2.07093921]
[1767319883621,2.49471014,2999.9,2999.3,0.002]
[1767319884314,2.49471014,2999.9,2999.4,0.002]
[1767319890359,2.49471014,2999.9,2999.4,2.07293921]
[1767319893068,2.28349853,2999.7,2999.3,0.002]
[1767319896672,2.28349853,2999.7,2999.3,2.07493921]
[1767319896968,0.24947101,2999.9,2999.3,2.07493921]
[1767319897177,2.28349853,2999.9,2999.3,2.07493921]
[1767319900050,2.28449853,2999.9,2999.3,2.07493921]
[1767319903082,2.28449853,2999.9,2999.3,2.10828032]
[1767319903286,2.28449853,2999.9,2999.3,2.07493921]
[1767319903287,0.001,2999.9,2999.3,2.07493921]
[1767319903880,0.001,2999.9,2999.5,2.07293921]
[1767319905486,2.28449853,2999.9,2999.5,2.07293921]
[1767319907389,2.28449853,2999.9,2999.3,0.002]
[1767319907582,0.04550525,2999.5,2999.3,0.002]
[1767319908564,0.001,2999.9,2999.4,2.07293921]
[1767319908763,2.28449853,2999.9,2999.4,2.07293921]
[1767319908976,0.001,2999.9,2999.4,2.28376724]
[1767319909889,2.28349853,2999.8,2999.4,0.21082803]
[1767319910190,2.28349853,2999.8,2999.3,2.02943396]
[1767319916971,2.28449853,2999.8,2999.3,2.02943396]
[1767319922170,2.28449853,2999.8,2999.4,2.06077396]
[1767319923305,0.001,2999.8,2999.4,2.06077396]
[1767319925204,2.29845799,2999.8,2999.4,2.06077396]
[1767319925613,2.29845799,2999.8,2999.4,2.02743396]
[1767319927416,2.52840379,2999.8,2999.3,0.002]
[1767319927776,2.29845799,2999.8,2999.3,0.002]
[1767319928808,2.29845799,2999.8,2999.3,2.02943396]
[1767319930007,0.001,2999.8,2999.5,2.02743396]
[1767319930204,0.001,2999.9,2999.5,2.02643396]
[1767319930909,2.29845799,2999.9,2999.5,2.02643396]
[1767319934210,2.86162992,2999.9,2999.5,2.02643396]
[1767319937624,2.86162992,2999.9,2999.3,0.002]
[1767319937625,2.29845799,2999.9,2999.3,0.002]
[1767319938094,2.29745799,2999.8,2999.3,0.002]
[1767319938313,2.29745799,2999.8,2999.3,2.02843396]
[1767319940118,2.29845799,2999.8,2999.3,2.02843396]
[1767319954034,2.29845799,2999.8,2999.0,2.03043396]
[1767319954241,2.56605184,2999.6,2998.3,3.3705703]
[1767319954454,2.48622214,2999.3,2998.6,2.03043396]
[1767319963746,2.48622214,2999.3,2998.5,0.876]
[1767319964047,2.48622214,2999.3,2998.5,0.878]
[1767319964248,2.48622214,2999.1,2998.5,2.90843396]
[1767319964638,2.48622214,2999.1,2998.6,2.03043396]
[1767319983565,2.27295875,2999.3,2998.7,2.03043396]
[1767319984264,2.27295875,2999.3,2998.9,2.03043396]
[1767319986679,0.001,2999.3,2998.9,2.03043396]
[1767319989052,0.001,2999.3,2999.0,2.0637784]
[1767319989877,2.27195875,2999.4,2999.1,2.02943396]
[1767319990277,0.2299458,2999.7,2999.1,2.02943396]
[1767319990472,2.27195875,2999.6,2999.1,2.02943396]
[1767319994742,2.27195875,2999.6,2999.2,2.02943396]
[1767319995460,2.27295875,2999.6,2999.2,2.02943396]
[1767319996864,2.27295875,2999.6,2999.0,2.90543396]
[1767319997169,2.27195875,2999.5,2998.7,2.02943396]
[1767319997392,2.27195875,2999.5,2998.8,2.90543396]
[1767319997539,2.27195875,2999.5,2998.9,0.2905434]
[1767319999779,2.27195875,2999.5,2998.9,2.02943396]
[1767320002253,2.27195875,2999.5,2999.0,0.03334444]
[1767320002453,2.27195875,2999.5,2999.0,2.0627784]
[1767320002867,2.27195875,2999.5,2999.0,2.02943396]
[1767320004066,2.27295875,2999.5,2999.0,2.02943396]
[1767320005987,2.27295875,2999.5,2999.0,2.6247901]
[1767320006354,2.27295875,2999.5,2999.1,2.02943396]
[1767320020410,2.27295875,2999.5,2998.9,2.03143396]
[1767320020909,2.27295875,2999.5,2999.0,0.002]
[1767320024410,2.27295875,2999.5,2999.0,2.03143396]
[1767320034319,2.27295875,2999.5,2999.0,0.002]
[1767320034320,2.50035462,2999.5,2999.0,0.002]
[1767320039916,2.38053944,2999.4,2998.9,0.002]
[1767320042319,2.38053944,2999.4,2998.9,2.03343396]
[1767320045427,2.38053944,2999.3,2998.9,2.03343396]
[1767320052831,2.38153944,2999.3,2998.9,2.03343396]
[1767320064760,0.001,2999.3,2998.9,2.03343396]
[1767320065661,0.001,2999.3,2998.9,2.03220535]
[1767320069766,2.32891953,2999.3,2998.9,2.03220535]
[1767320071668,2.32891953,2999.5,2999.0,2.0637784]
[1767320074148,2.32891953,2999.5,2999.0,2.03043396]
[1767320077352,0.001,2999.5,2999.2,2.03043396]
[1767320081483,2.32891953,2999.6,2999.1,0.20645509]
[1767320081782,2.32891953,2999.6,2999.2,2.02943396]
[1767320085993,0.001,2999.5,2999.2,2.02943396]
[1767320086485,2.32891953,2999.6,2998.9,3.33532707]
[1767320086677,2.32891953,2999.6,2999.0,2.02843396]
[1767320088792,0.001,2999.6,2999.2,2.02843396]
[1767320089090,0.001,2999.6,2999.2,2.23461169]
[1767320091165,2.32891953,2999.6,2999.2,2.23461169]
[1767320092394,2.32891953,2999.6,2998.9,2.02920535]
[1767320092692,2.32891953,2999.6,2998.9,0.00077139]
[1767320092693,2.32791953,2999.3,2998.9,0.00077139]
[1767320093201,2.32791953,2999.3,2999.1,0.002]
[1767320097602,2.32791953,2999.3,2998.9,0.00077139]
[1767320098490,2.89410202,2999.3,2998.9,0.00077139]
[1767320101101,2.89410202,2999.3,2998.9,2.03120535]
[1767320101303,0.001,2999.5,2999.1,2.03043396]
[1767320101503,0.001,2999.5,2999.1,1.96220673]
[1767320101718,2.43406125,2999.8,2999.1,1.96020673]
[1767320105888,2.43406125,2999.8,2999.1,1.99355006]
[1767320106291,2.43406125,2999.8,2999.1,1.96020673]
[1767320106989,2.43406125,2999.8,2998.9,0.00077139]
[1767320106990,2.43306125,2999.5,2998.9,0.00077139]
[1767320110222,2.43306125,2999.5,2998.9,1.96097812]
[1767320111114,2.43306125,2999.5,2999.0,0.03334444]
[1767320111282,2.43306125,2999.5,2999.1,1.96020673]
[1767320111479,2.43306125,2999.7,2999.1,1.96020673]
[1767320111701,2.43306125,2999.7,2999.2,1.96020673]
[1767320115208,2.43406125,2999.7,2999.2,1.96020673]
[1767320122205,0.001,2999.7,2999.2,1.96020673]
[1767320123220,0.001,2999.7,2999.2,1.99354895]
[1767320123424,0.001,2999.7,2999.2,1.96020673]
[1767320123819,0.001,2999.7,2999.3,1.96020673]
[1767320125926,2.49214249,2999.7,2999.3,1.96020673]
[1767320140131,2.49214249,2999.7,2999.3,1.96220673]
[1767320160037,2.31330962,2999.5,2998.9,0.00077139]
[1767320160378,2.31330962,2999.3,2998.9,0.00077139]
[1767320160933,2.31330962,2999.3,2998.9,1.96297812]
[1767320162138,2.31330962,2999.3,2998.9,0.00077139]
[1767320165245,2.31330962,2999.3,2998.6,2.83820673]
[1767320165752,2.31330962,2999.3,2998.7,1.96220673]
[1767320166051,2.31330962,2999.2,2998.7,1.96220673]
[1767320167279,2.31330962,2999.2,2998.6,0.876]
[1767320167476,2.31330962,2999.1,2998.5,1.96420673]
[1767320167657,3.88685088,2999.1,2998.5,1.96420673]
[1767320167866,2.31330962,2999.0,2998.5,1.96420673]
[1767320168066,2.31330962,2998.9,2998.5,1.96420673]
[1767320177697,2.31330962,2998.9,2998.3,0.002]
[1767320178258,2.31330962,2998.9,2998.3,1.96620673]
[1767320178589,2.31330962,2998.9,2997.9,0.00029071]
[1767320178590,2.31330962,2998.1,2997.9,0.00029071]
[1767320178782,2.5515071,2998.0,2997.8,0.002]
[1767320178978,2.31330962,2998.0,2997.8,0.002]
[1767320179516,0.06866522,2998.2,2997.8,0.002]
[1767320179790,2.38197484,2998.2,2997.8,1.97220673]
[1767320182795,2.31330962,2998.1,2997.7,0.002]
[1767320182995,2.31330962,2998.1,2997.7,1.97220673]
[1767320183697,3.12781019,2998.1,2997.7,1.97220673]
[1767320183996,2.43513092,2998.0,2997.7,1.97220673]
[1767320184386,2.43513092,2998.0,2997.5,0.002]
[1767320184789,2.43513092,2998.0,2997.5,1.97420673]
[1767320191705,2.43513092,2998.0,2997.7,1.97220673]
[1767320193411,2.43513092,2998.0,2997.6,0.03336002]
[1767320193412,2.43513092,2998.0,2997.5,1.97420673]
[1767320195211,3.09362792,2998.0,2997.5,1.97420673]
[1767320195709,2.25900492,2997.9,2997.5,1.97420673]
[1767320197311,2.25900492,2997.9,2997.5,0.002]
[1767320197985,2.25900492,2997.9,2997.5,1.97420673]
[1767320200513,2.25900492,2997.8,2997.1,0.02480216]
[1767320200688,2.48490541,2997.8,2997.1,2.00100889]
[1767320201013,2.48490541,2997.8,2997.2,0.03336447]
[1767320201215,2.48490541,2997.8,2997.3,1.97620673]
[1767320201419,2.48490541,2997.8,2997.4,0.03336224]
[1767320201797,2.48490541,2997.8,2997.3,1.97620673]
[1767320202815,2.48490541,2997.8,2997.4,0.002]
[1767320202995,2.50749546,2997.7,2997.4,0.002]
[1767320204316,2.25900492,2998.0,2997.4,1.97820673]
[1767320205127,2.25900492,2998.0,2997.4,0.002]
[1767320205821,2.25900492,2997.9,2997.4,0.002]
[1767320206421,3.33648963,2998.1,2997.5,1.97620673]
[1767320206630,3.15307939,2998.1,2997.5,1.97620673]
[1767320209240,0.001,2998.1,2997.5,1.97620673]
[1767320209402,2.25900492,2998.3,2997.5,2.00956786]
[1767320209592,2.25900492,2998.3,2997.5,1.97620673]
[1767320210124,2.25900492,2998.3,2997.5,1.97820673]
[1767320210313,0.001,2998.1,2997.5,1.97820673]
[1767320210514,0.001,2998.1,2997.7,1.97520673]
[1767320211306,2.48030006,2998.5,2997.8,1.97420673]
[1767320214727,2.48030006,2998.5,2997.9,1.97420673]
[1767320217117,2.45000314,2998.8,2997.9,1.97420673]
[1767320217315,0.001,2998.5,2998.0,1.97420673]
[1767320218713,0.001,2998.5,2998.1,1.97420673]
[1767320222833,2.45000314,2998.2,2997.1,0.02480216]
[1767320223031,0.001,2998.5,2997.2,2.85020673]
[1767320223032,2.45000314,2998.0,2997.2,2.85020673]
[1767320223238,2.45000314,2998.0,2997.3,1.97420673]
[1767320224072,2.45000314,2998.0,2997.4,1.97620673]
[1767320224351,2.45000314,2998.0,2997.8,0.00100203]
[1767320224755,2.45000314,2998.3,2997.8,1.97520876]
[1767320224913,3.33604391,2998.5,2998.0,1.97420673]
[1767320224914,2.45100314,2998.5,2998.0,1.97420673]
[1767320225239,2.45100314,2998.5,2998.0,2.0075623]
[1767320225635,2.45100314,2998.5,2997.8,0.00100203]
[1767320225636,2.45000314,2998.3,2997.8,0.00100203]
[1767320227717,2.45000314,2998.3,2997.8,2.00856433]
[1767320228867,2.45000314,2998.8,2998.1,3.8904859]
[1767320229145,2.45000314,2998.8,2998.4,1.97320658]
[1767320230527,0.001,2998.5,2998.4,1.97320658]
[1767320231118,2.45100314,2999.0,2998.4,1.97220658]
[1767320236145,2.45100314,2999.0,2998.4,2.0055577]
[1767320236318,2.45100314,2999.0,2998.4,1.97220658]
[1767320236516,2.45100314,2999.0,2998.4,2.29926743]
[1767320238037,2.45100314,2999.0,2998.5,1.97220658]
[1767320239331,2.45100314,2999.0,2998.2,1.26504859]
[1767320239529,2.45000314,2998.9,2998.2,1.26504859]
[1767320239729,2.45000314,2998.9,2997.9,3.36899124]
[1767320239730,2.45000314,2998.6,2998.1,2.84820658]
[1767320240042,2.45000314,2998.6,2998.2,1.97220658]
[1767320240640,3.8904859,2998.9,2998.2,1.97220658]
[1767320240955,2.45000314,2998.8,2998.2,1.97220658]
[1767320241157,2.45000314,2998.8,2998.2,2.25702724]
[1767320242360,2.45000314,2998.8,2998.2,1.97220658]
[1767320243758,2.45100314,2998.8,2998.2,1.97220658]
[1767320247242,2.46506638,2998.7,2998.2,1.97220658]
[1767320247437,2.46506638,2998.6,2998.2,1.97220658]
[1767320247636,2.46506638,2998.6,2997.8,0.00100203]
[1767320247637,2.46506638,2998.6,2997.8,2.84920861]
[1767320247842,2.46506638,2998.6,2997.9,1.97220658]
[1767320250641,2.46506638,2998.5,2997.9,1.97220658]
[1767320252252,3.8904859,2998.4,2997.9,1.97220658]
[1767320252451,3.41552568,2998.8,2997.8,0.00100203]
[1767320252452,3.8904859,2998.2,2997.8,0.00100203]
[1767320252643,3.8904859,2998.2,2997.5,0.002]
[1767320252644,2.85411497,2998.1,2997.6,0.876]
[1767320252850,2.85411497,2998.1,2997.5,2.33893557]
[1767320253054,2.85411497,2998.1,2997.5,0.002]
[1767320257557,2.85411497,2998.1,2997.6,2.33693557]
[1767320258144,2.46506638,2998.1,2997.6,2.33693557]
[1767320259268,2.46506638,2998.1,2997.5,0.002]
[1767320261144,2.46606638,2998.1,2997.5,0.002]
[1767320262445,2.46606638,2998.1,2997.5,2.33893557]
[1767320264370,2.46606638,2998.1,2997.6,0.03336002]
[1767320264573,2.46606638,2998.1,2997.6,2.37029559]
[1767320266775,2.46606638,2998.1,2997.6,2.33693557]
[1767320273091,2.46606638,2998.1,2997.5,0.002]
[1767320276479,2.46606638,2998.1,2997.4,0.002]
[1767320276686,3.04619867,2998.1,2997.4,0.002]
[1767320277382,2.4320131,2997.9,2997.1,0.02480216]
[1767320277548,2.4320131,2997.7,2997.1,0.02480216]
[1767320278281,2.4320131,2997.7,2997.1,2.30899899]
[1767320290586,2.4330131,2997.7,2997.1,2.30899899]
[1767320303000,2.4320131,2997.6,2997.1,2.30899899]
[1767320306306,0.001,2997.7,2997.1,2.30899899]
[1767320306804,0.001,2997.6,2997.1,2.30899899]
[1767320311501,0.001,2997.7,2997.2,2.42767208]